[Event "TUR-ch U13-18 Open 2023"]
[Site "Antalya"]
[Date "2023.01.22"]
[Round "1"]
[White "Tarhan, Adar"]
[Black "Altin, Emre"]
[Result "1-0"]
[ECO "C54"]
[WhiteElo "2321"]
[BlackElo "1325"]
[Annotator "TA"]
[PlyCount "55"]
[EventDate "2023.01.17"]
[EventType "swiss"]
[EventCountry "TUR"]
[SourceTitle "playchess.com"]
[Source "ChessBase"]
[SourceQuality "1"]
[TimeControl "5400+30"]

{[%evp 12,55,30,9,18,15,137,128,136,126,158,165,258,267,279,268,272,258,264,268,316,305,422,164,176,176,177,186,235,227,227,237,248,233,600,599,865,836,913,681,29983,29984,29983,29984,29995,29994]} 1. e4 e5 2. Nf3 Nc6 3. Bc4 Bc5 4. c3 Nf6 5. d3 a6 6. O-O Ba7 7. Be3 Bxe3 {C54: Giuoco Piano: 4 c3 Nf6, main lines with 5 d4 and 5 d3.} 8. fxe3 {[#]} d5 $146 {[#]} (8... d6 $11) ({Predecessor:} 8... O-O 9. Nbd2 d6 10. a4 Ne7 11. Qe1 Be6 12. Bxe6 fxe6 13. d4 Ng6 14. Qg3 exd4 15. exd4 {½-½ Herpai,J (1890)-Csontos,A (1962) HUN-chT U18 Budapest 2022 (6.2)}) 9. exd5 $1 $16 Nxd5 {White is better.} 10. Qb3 Na5 11. Qa4+ c6 (11... Nc6 $142) 12. Bxd5 $18 (12. Nxe5 Nxc4 13. Nxf7 (13. dxc4 Nxe3 14. Rf2 Qc7 $17) (13. Nxc4 b5 $17) (13. Qxc4 Qg5 $11) 13... b5 14. Nxd8 bxa4 15. dxc4 Nxe3 $14) 12... Qxd5 13. b4 {Dodges b6} Qxd3 14. Qxa5 Qxe3+ 15. Kh1 f6 16. Re1 Qf2 {[%cal Oc8h3]} 17. Nbd2 $2 (17. Rxe5+ fxe5 18. Qxe5+ Kd8 19. Nbd2 (19. Qxg7 Qf1+ 20. Ng1 Re8 $17) (19. Na3 Bh3 $16)) 17... O-O 18. Ne4 {[%cal Bd2e4,Be4d6,Bd6f7][%mdl 32]} Qa7 19. Qc5 Qb8 (19... Be6 $142 20. Nfd2 Bf7) 20. Rad1 Be6 21. a4 {[%cal Ba2a4,Ba4a5][%mdl 32]} Bd5 22. a5 f5 $2 (22... Bxe4 23. Rxe4 Qc7) 23. Nd6 {Threatens to win with Rxd5.} Bxf3 24. gxf3 Qc7 25. Qxe5 Rad8 26. Qe6+ {White mates.} (26. Nxf5 $2 {perishes.} Qxe5 27. Rxe5 Rxd1+ 28. Kg2 Rd3 $19) 26... Kh8 {[#]} 27. Nf7+ $1 {[%mdl 576] Discovered Attack, Double Attack} Kg8 (27... Rxf7 28. Rxd8+) 28. Rxd8 {[%mdl 64] Back Rank. Black got outplayed after the opening.   Weighted Error Value: White=0.26 (precise) /Black=0.80} 1-0

[Event "TUR-ch U13-18 Open 2023"]
[Site "Antalya"]
[Date "2023.01.22"]
[Round "1"]
[White "Ince, Taylan Ruzgar"]
[Black "Oztuksavul, Ida"]
[Result "1-0"]
[ECO "D27"]
[WhiteElo "2267"]
[BlackElo "1368"]
[Annotator "TA"]
[PlyCount "53"]
[EventDate "2023.01.17"]
[EventType "swiss"]
[EventCountry "TUR"]
[SourceTitle "playchess.com"]
[Source "ChessBase"]
[SourceQuality "1"]
[TimeControl "5400+30"]

{[%evp 15,52,10,66,6,85,82,83,74,84,69,89,56,66,9,75,56,110,108,112,107,114,77,70,64,74,25,602,603,707,746,746,371,29993,29994,29997,29997,29997,29998,29999]} 1. d4 d5 2. c4 dxc4 3. Nf3 Nf6 4. e3 e6 5. Bxc4 c5 6. O-O a6 7. Bd3 {7.b3 is becoming the main line.} Nc6 8. Nc3 Be7 ({Better is} 8... cxd4 $11 9. exd4 Be7) 9. a3 {D27: Queen's Gambit Accepted: Classical main line: 7 e4!? and 7 a4.} (9. dxc5 $1 $14 Bxc5 10. a3) 9... b5 (9... cxd4 $11 10. exd4 b6) 10. dxc5 $1 $16 Bxc5 11. b4 {White is better.} Be7 12. Bb2 O-O 13. Qc2 Bb7 14. Ne4 (14. Rfd1 $14) 14... h6 {[#]} (14... Rc8 $11 15. Nc5 (15. Nxf6+ Bxf6 16. Bxf6 Qxf6 $11) 15... Bxc5 16. bxc5 Na5) 15. Rad1 $146 {Black must now prevent Nxf6+.} ({Predecessor:} 15. Rfd1 Qb6 16. Nfd2 Nd5 17. Nb3 Rfd8 18. Qe2 Rab8 19. Rac1 Ba8 20. Qf3 Rbc8 21. Bb1 {1-0 Johansen,T (2278)-Kyrkjebo,E (2085) NOR-ch Mester 2017 (8)}) 15... Nd5 {[#]} (15... Nxe4 $14 16. Bxe4 {[%mdl 64] Discovered Attack} Qe8) 16. Nc3 $1 {White is more active.} Qb6 17. Nxd5 exd5 18. Qb1 Rfd8 19. Bh7+ Kh8 20. Qf5 $40 {[%mdl 128] White attacks.} (20. Bf5 $16) 20... Bf6 $2 {[%mdl 8192] This costs Black the game.} 21. Bxf6 $18 {[%cal Of3g5] Intending Ng5! and mate.} gxf6 22. Qxf6+ ({Worse is} 22. Rxd5 Rxd5 23. Qxf6+ (23. Qxd5 $2 {is the wrong capture.} Ne5 $19) 23... Kxh7 $11) 22... Kxh7 {[#]} 23. Rd4 Rg8 $2 (23... Nxd4 $18 24. Qxb6 Nxf3+ 25. gxf3 Rd7) 24. Rh4 {[%csl Gf6][%cal Rh4h6] White mates.} ({Inferior is} 24. Qxf7+ Rg7 25. Qf5+ Kh8 $11) 24... Rg6 25. Qxf7+ Kh8 26. Qxg6 {[%cal Rh4h6]} Rg8 27. Qxh6# {Weighted Error Value: White=0.52/Black=0.78} 1-0

[Event "TUR-ch U13-18 Open 2023"]
[Site "Antalya"]
[Date "2023.01.22"]
[Round "1"]
[White "Dogan, Ali Ekber"]
[Black "Dirikolu, Deniz"]
[Result "0-1"]
[ECO "C84"]
[WhiteElo "2182"]
[BlackElo "1868"]
[Annotator "TA"]
[PlyCount "84"]
[EventDate "2023.01.17"]
[EventType "swiss"]
[EventCountry "TUR"]
[SourceTitle "playchess.com"]
[Source "ChessBase"]
[SourceQuality "1"]
[TimeControl "5400+30"]

{[%evp 14,84,2,0,29,-12,0,-9,-20,-18,13,3,10,2,41,47,35,27,58,13,52,12,21,10,13,9,87,79,81,71,61,43,70,0,61,0,37,16,78,42,89,0,0,-42,0,-34,-26,-14,531,-341,-281,-270,-225,-319,-271,-314,-314,-325,-312,-293,-226,-277,-220,-382,-307,-381,-368,-371,-370,-365,-352,-852,-841]} 1. e4 {[%emt 0:01:00]} e5 {[%emt 0:01:00]} 2. Nf3 {[%emt 0:00:30]} Nc6 {[%emt 0:00:00]} 3. Bb5 {[%emt 0:00:30][%cal Bf1b5,Bb5a4,Ba4b3][%mdl 32]} a6 {[%emt 0:00:00]} 4. Ba4 {[%emt 0:00:30]} Nf6 {[%emt 0:00:00]} 5. O-O {[%emt 0:00:30]} Be7 {[%emt 0:00:00]} 6. Nc3 {[%emt 0:01:30]} b5 {[%emt 0:00:30]} 7. Bb3 {[%emt 0:00:30]} d6 {[%emt 0:00:30]} 8. d3 {[%emt 0:01:30] 8.a4 is a critical line.} Bg4 {[%emt 0:00:30] C84: Closed Ruy Lopez: Unusual White 6th moves.} 9. Be3 {[%emt 0:08:30] Dodges Nd4} (9. h3 $5 {[%cal Rh3g4]} Bd7 10. Be3 $11) 9... Na5 {[%emt 0:02:30] [#]} 10. d4 $146 {[%emt 0:17:30]} ({Predecessor:} 10. h3 Bh5 11. Nd5 Nxb3 12. Nxf6+ Bxf6 13. axb3 O-O 14. g4 Bg6 15. Nh2 d5 16. f3 {1-0 Murzin,V (2465)-Barp,A (2375) RUS-ITA U-16 Online Battle blitz 2020}) 10... exd4 {[%emt 0:00:30] The position is equal.} 11. Bxd4 {[%emt 0:03:30]} (11. Qxd4 $2 {too greedy.} c5 12. Qd1 c4 $19) 11... Nxb3 {[%emt 0:03:30]} 12. axb3 {[%emt 0:10:30]} O-O {[%emt 0:00:30]} 13. Qd3 {[%emt 0:07:30]} Nd7 {[%emt 0:01:30]} 14. h3 {[%emt 0:11:30]} Be6 {[%emt 0:01:30]} 15. Nd5 {[%emt 0:00:30]} f6 {[%emt 0:03:30]} 16. c4 {[%emt 0:09:30]} bxc4 {[%emt 0:03:30]} (16... c6 $5 {[%cal Rc6d5]}) 17. Qxc4 {[%emt 0:03:30]} c5 {[%emt 0:00:30]} 18. Bc3 {[%emt 0:02:07]} Nb6 {[%emt 0:03:30]} 19. Qd3 {[%emt 0:00:53]} Bxd5 {[%emt 0:00:30]} (19... Nxd5 $11 20. exd5 Bf7) 20. exd5 $16 {[%emt 0:00:24]} Qc8 {[%emt 0:02:30]} 21. Rfe1 {[%emt 0:01:13]} Qb7 {[%emt 0:01:30]} 22. Qe4 {[%emt 0:04:48]} Rae8 {[%emt 0:00:30]} (22... Nxd5 $2 23. Red1 $18) 23. Qd3 {[%emt 0:03:42]} Ra8 {[%emt 0:05:30]} 24. Qe4 {[%emt 0:01:29]} (24. Rad1 $14) 24... Rf7 {[%emt 0:00:30]} (24... Nxd5 $2 25. Red1 $18) 25. Rad1 $36 {[%emt 0:02:38][%mdl 2048] Black is under pressure.} f5 {[%emt 0:00:30]} (25... Bf8 $11 {remains equal.}) 26. Qd3 {[%emt 0:00:53]} (26. Qe6 {looks sharper.} a5 27. Rd3 Qd7 28. Ra1) 26... Raf8 {[%emt 0:03:30]} (26... Rb8 $14) 27. Ra1 {[%emt 0:00:51]} ({Better is} 27. Re6 $16) 27... Nxd5 $11 {[%emt 0:02:30]} 28. Qxa6 {[%emt 0:00:46]} Qxb3 {[%emt 0:00:00]} 29. Qd3 {[%emt 0:01:32]} Qb7 {[%emt 0:06:00]} (29... Nc7 $5) 30. Qc4 {[%emt 0:01:28] [#]} Nc7 $2 {[%emt 0:00:30][%mdl 8192]} 31. Re6 $4 {[%emt 0:00:35][%mdl 8192]} (31. Rxe7 $18 {Strongly threatening Ng5.} h6 32. Nh4) 31... Nxe6 {[%emt 0:01:30]} 32. Qxe6 {[%emt 0:00:31]} Qe4 {[%emt 0:00:30]} 33. Qd7 {[%emt 0:00:41]} (33. Qb3 {is a better defense.}) 33... Rd8 {[%emt 0:01:30]} 34. Qc7 {[%emt 0:00:53]} Bf6 {[%emt 0:00:30]} 35. Qb6 {[%emt 0:00:18] [#] Threatens to win with Bxf6.} Rb7 {[%emt 0:00:30]} 36. Qa5 {[%emt 0:01:13]} Rdb8 {[%emt 0:00:30] ...Bxc3 is the strong threat.} 37. Re1 {[%emt 0:00:46]} Qd5 {[%emt 0:00:30] Inhibits Qa2. ...Bxc3 would be deadly.} 38. Qa4 $2 {[%emt 0:01:22]} (38. Bxf6 gxf6 39. Qc3) 38... Qf7 {[%emt 0:00:30]} 39. Nd2 {[%emt 0:00:30]} Bxc3 {[%emt 0:00:30]} 40. bxc3 {[%emt 0:00:30]} Re7 {[%emt 0:00:30]} 41. Rd1 {[%emt 0:00:30]} h6 {[%emt 0:00:30]} 42. Nc4 $2 {[%emt 0:00:30]} (42. Qa6) 42... Re4 {[%emt 0:00:30] Weighted Error Value: White=0.59/Black=0.36} 0-1

[Event "TUR-ch U13-18 Open 2023"]
[Site "Antalya"]
[Date "2023.01.22"]
[Round "1"]
[White "Gokcek, Kursat Bugra"]
[Black "Uyumaz, Feyzullah"]
[Result "1-0"]
[ECO "C54"]
[WhiteElo "2116"]
[BlackElo "1283"]
[Annotator "TA"]
[PlyCount "91"]
[EventDate "2023.01.17"]
[EventType "swiss"]
[EventCountry "TUR"]
[SourceTitle "playchess.com"]
[Source "ChessBase"]
[SourceQuality "1"]
[TimeControl "5400+30"]

{[%evp 13,91,16,29,11,18,7,35,8,25,17,48,0,0,-9,4,5,13,7,7,0,57,22,29,29,28,23,15,18,12,8,81,77,93,50,54,8,42,0,16,15,58,56,74,-44,17,0,202,210,210,210,221,214,529,451,511,308,405,383,402,397,379,368,372,350,341,335,363,363,495,504,707,672,1695,698,695,692,699,675,6972,6831]} 1. e4 e5 2. Nf3 Nc6 3. Bc4 Bc5 4. d3 h6 5. c3 d6 6. a4 a6 7. O-O Nf6 8. Na3 {C54: Giuoco Piano: 4 c3 Nf6, main lines with 5 d4 and 5 d3.} O-O 9. h3 Be6 10. Re1 {White is slightly better.} Re8 {[#]} 11. Bxe6 $146 ({Predecessor:} 11. b4 Ba7 12. Bxe6 Rxe6 13. b5 Ne7 14. Be3 Bxe3 15. Rxe3 Ng6 16. Nc4 d5 17. Ncd2 {0-1 Bachmann,A (2645)-Swiercz,D (2636) Titled Tuesday intern op 4th Oct blitz 2016 (3)}) 11... fxe6 12. d4 (12. b4 $14 Ba7 13. Nc4) 12... exd4 $11 13. cxd4 Ba7 (13... Bb4 $5 {[%cal Rb4e1]}) 14. Nc2 d5 15. e5 Ne4 16. b4 b5 (16... Qe7 $11) 17. axb5 axb5 18. Re3 Bb6 19. Rxa8 Qxa8 20. Ra3 Qd8 21. Qd3 Na7 (21... Qd7 $11) 22. Be3 Rf8 23. Rb3 Qe8 24. Nce1 (24. Nfe1 $14 {was preferrable.}) 24... Qh5 25. Nh2 Qf7 {[%cal Re4f2]} 26. Rb2 Qe8 27. g4 Nc6 {[#]} 28. h4 (28. f3 $1 $16 {[%cal Rf3e4]}) 28... Qe7 (28... Qa8 $15 29. Nhf3 Qa4) 29. Ng2 {Threatens to win with f3.} Nxb4 $2 {White leaves nothing to chance now.} (29... h5 $11 {and Black is okay.}) 30. Qxb5 $18 Ra8 31. Qxb4 ({Stronger than} 31. Rxb4 Nc3 32. Qc6 Ra1+ 33. Nf1 Qxb4 34. Qxe6+ Kh8 $11) 31... Ra1+ 32. Nf1 Qf7 (32... Qxb4 {is tougher.} 33. Rxb4 g5) 33. Qb5 Qf3 34. Qe2 Qh3 35. g5 ({Weaker is} 35. Nf4 Qxh4 36. Qf3 Ng5 $18) 35... hxg5 36. hxg5 Nc3 37. Qd3 Ne4 {aiming for ...Nxg5.} 38. Rb1 Nxg5 {[%cal Rg5f3]} 39. Nd2 (39. Rxa1 $2 Nf3#) 39... Rxb1+ 40. Qxb1 Nf7 41. Qg6 {White is clearly winning.} Ba5 42. Nf4 {[%mdl 64] [#] Deflection} Qh7 43. Qxh7+ (43. Qxe6 $142 Qh6 44. Qe8+ {[%mdl 64] Deflection} Kh7 45. Qxf7 Bxd2 46. Bxd2 Qg5+ 47. Kf1) 43... Kxh7 44. Nxe6 c6 45. Nb3 Kg6 46. Nxa5 {Weighted Error Value: White=0.40/Black=0.42} 1-0

[Event "TUR-ch U13-18 Open 2023"]
[Site "Antalya"]
[Date "2023.01.22"]
[Round "1"]
[White "Danaci, Ege"]
[Black "Coban, Azad"]
[Result "1-0"]
[ECO "C42"]
[WhiteElo "2088"]
[BlackElo "1417"]
[Annotator "TA"]
[PlyCount "51"]
[EventDate "2023.01.17"]
[EventType "swiss"]
[EventCountry "TUR"]
[SourceTitle "playchess.com"]
[Source "ChessBase"]
[SourceQuality "1"]
[TimeControl "5400+30"]

{[%evp 11,51,-20,8,-24,0,7,12,-2,0,-4,63,64,53,54,75,66,43,49,44,44,93,94,184,131,222,218,241,232,244,143,337,349,412,416,441,420,887,849,859,821,960,1043]} 1. e4 e5 2. Nf3 Nf6 3. Nxe5 d6 {[%cal Bd7d6,Bd6d5][%mdl 32]} 4. Nc4 Nxe4 5. Qe2 Qe7 6. Ne3 Nf6 7. b3 {C42: Petroff Defence: 3 Nxe5 and unusual White 3rd moves.} d5 8. Bb2 {Black should prevent Bxf6.} c6 9. g3 {[#] The position is equal.} Be6 $146 ({Predecessor:} 9... Ng4 10. Ba3 c5 11. Nxd5 Qxe2+ 12. Bxe2 Kd8 13. Ne3 Nf6 14. Nc3 Nc6 15. Na4 b6 {1-0 Vykouk,J (2424)-Liska,J (2223) CZE-ch U20 Kouty nad Desnou 2017 (2)}) 10. Bg2 g6 (10... Na6 $11) 11. c4 $14 {White is more active.} dxc4 12. bxc4 {Strongly threatening d4.} ({Don't play} 12. Nxc4 Bxc4 13. bxc4 Qxe2+ 14. Kxe2 Nbd7 $11) 12... Bg7 13. O-O O-O {[%cal Oe6g4]} 14. Ba3 c5 15. d4 Na6 (15... Nfd7 $1 $14) 16. Nc3 $36 {[%mdl 2048] White is in control.} Nh5 (16... Rfe8 $16) 17. Ned5 (17. Rab1 $18) 17... Qd7 (17... Qd8 $16) 18. dxc5 $18 {Threatens to win with Rad1.} Rfe8 {White must now prevent ...Bxd5.} 19. Qc2 Bf5 {[#]} 20. Qb3 ({White should try} 20. Qd2 $1 $18) 20... Qe6 $2 {This move loses the game for Black.} (20... Rac8 $16 {was worth a try.} 21. Rad1 Nxc5 22. Bxc5 Rxc5) 21. Rad1 ({Stronger than} 21. Qxb7 Rab8 22. Qxa7 Bxc3 $14) 21... Rab8 22. Nb5 Qe2 23. Ne3 {Prevents Bc2.} (23. Nxa7 Bc2 24. Qf3 Bxd1 25. Rxd1 Qxa2 $16) 23... Bg4 (23... Rxe3 $142 24. Qxe3 (24. fxe3 Bc2 $16) 24... Qxe3 25. fxe3 Bh6) 24. Rfe1 {White is clearly winning.} Qxd1 25. Rxd1 Rxe3 26. fxe3 {Weighted Error Value: White=0.16 (very precise) /Black=0.47} 1-0

[Event "TUR-ch U13-18 Open 2023"]
[Site "Antalya"]
[Date "2023.01.22"]
[Round "1"]
[White "Topuz, Mirac Melih"]
[Black "Yontar, Erdem"]
[Result "1-0"]
[ECO "B01"]
[WhiteElo "2071"]
[BlackElo "1058"]
[Annotator "TA"]
[PlyCount "85"]
[EventDate "2023.01.17"]
[EventType "swiss"]
[EventCountry "TUR"]
[SourceTitle "playchess.com"]
[Source "ChessBase"]
[SourceQuality "1"]
[TimeControl "5400+30"]

{[%evp 14,84,47,29,25,16,31,18,24,12,25,21,23,25,25,20,117,132,137,124,222,210,204,182,601,592,773,768,885,885,1023,1018,1016,988,1637,1531,1813,1800,1791,1784,1731,1693,4069,2171,29994,29993,29993,29994,29994,29995,29996,29994,29994,29995,29995,29996,29997,29995,29995,29992,29996,29997,29997,29996,29996,29997,29997,29998,29998,29998,29998,29999,29999]} 1. e4 d5 2. exd5 Qxd5 3. Nc3 Qa5 4. Nf3 {[%cal Bg1f3,Bf3d2,Bd2c4,Bc4e5][%mdl 32]} Nf6 5. Be2 Bf5 6. O-O e6 7. d4 c6 8. Bf4 Nbd7 {B01: Scandinavian Defence.} 9. Nd2 Bg6 {[#]} 10. Bg3 $146 ({Predecessor:} 10. Nc4 Qf5 11. Bd6 Qxc2 12. Qe1 b5 13. Rc1 Qf5 14. Bxf8 Kxf8 15. Ne3 Qf4 16. Bf3 {½-½ Schiappacasse,M (2095)-Kloster,J (2165) Arco op 20th 1998 (2)}) 10... Qd8 {The position is equal.} 11. Nc4 Nb6 12. Ne5 Bd6 13. Re1 Qc7 14. Bf3 O-O-O (14... Rd8 $11) 15. a4 $16 {[%cal Ba2a4,Ba4a5][%mdl 32] White now steadily converts the win.} Nbd7 {[#]} 16. Qe2 {[%cal Oe5c6] Black must now prevent Nxc6! White is more active.} Bxe5 (16... Kb8 $16 {was worth a try.}) 17. dxe5 $18 ({Weaker is} 17. Bxe5 Nxe5 18. dxe5 Nd5 $11) 17... Ng8 18. a5 {a6 is the strong threat.} Nc5 (18... Ne7 19. Bh4 Rde8) 19. b4 Na6 20. b5 Nb4 21. bxc6 bxc6 22. Reb1 Rd4 23. Ra4 c5 24. Nb5 {[%csl LRc7,LRd4][%cal Bc3b5,Bb5d4,Bd4b3,Bb3c5,Bc5a6,Ba6b8,Bb8c6][%mdl 32]} Qd7 25. Nxd4 {[#] Rbxb4 would kill now.} Qxa4 26. Qc4 Qxa5 27. Nb3 Qc7 28. Nxc5 Nxc2 29. Rb8+ {White mates.} Qxb8 30. Na6+ Kd8 31. Nxb8 Ne7 32. Bh4 f6 33. exf6 gxf6 34. Bxf6 Rf8 35. Nc6+ Ke8 36. Bxe7 Rf5 37. Qxe6 {[%cal Re7c5]} Nd4 38. Qc8+ Kf7 39. Qf8+ Ke6 40. Nxd4+ Ke5 41. Bf6+ Rxf6 42. Qc5+ Kf4 43. g3# {An entertaining game by Topuz.   Weighted Error Value: White=0.03 (flawless) /Black=0.44} 1-0

[Event "TUR-ch U13-18 Open 2023"]
[Site "Antalya"]
[Date "2023.01.22"]
[Round "1"]
[White "Engin, Onur Cinar"]
[Black "Sahbaz, Bartu"]
[Result "1-0"]
[ECO "C02"]
[WhiteElo "1990"]
[BlackElo "1306"]
[Annotator "TA"]
[PlyCount "70"]
[EventDate "2023.01.17"]
[EventType "swiss"]
[EventCountry "TUR"]
[SourceTitle "playchess.com"]
[Source "ChessBase"]
[SourceQuality "1"]
[TimeControl "5400+30"]

{[%evp 10,70,19,0,31,17,25,29,28,25,66,70,65,70,95,79,67,86,82,73,91,35,118,119,113,122,195,195,191,181,173,168,208,208,210,204,206,199,242,162,316,175,168,177,179,173,370,383,379,333,493,444,876,842,975,601,601,592,1045,968,823,782,1592]} 1. e4 e6 2. d4 d5 3. e5 c5 4. c3 Ne7 5. Nf3 Nbc6 6. Na3 Ng6 {C02: French: Advance Variation.} 7. Nc2 Be7 8. Bd3 c4 {[#] White has an edge.} 9. Be2 $146 ({Predecessor:} 9. Bxg6 hxg6 10. O-O Bd7 11. Be3 f6 12. b4 b5 13. Qb1 Kf7 14. a4 a6 15. axb5 axb5 {½-½ Comp Dark Thought-Arnoldus,H (2010) The Hague AEGON 1996 (2)}) 9... a5 10. a4 {[%cal Ba2a4,Ba4b5][%mdl 32]} Rb8 {[#]} 11. b3 $1 b5 (11... cxb3 12. Ne3) 12. axb5 cxb3 13. Na3 {[%cal Od1b3]} (13. bxc6 {feels hotter.} b2 14. Bxb2 Rxb2 15. Qc1) 13... Na7 14. Qxb3 {[%cal Oh2h4]} Bd7 15. Bd2 (15. Rb1 $16) 15... Bxa3 {White leaves nothing to chance now.} (15... O-O $14) 16. Qxa3 $16 ({And not} 16. Rxa3 Nxb5 17. Bxb5 Bxb5 $17) 16... Nxb5 17. Qxa5 Qc8 (17... Qxa5 $16 18. Rxa5 O-O) 18. O-O $18 {Rfb1 is the strong threat. Black is weak on the dark squares} O-O 19. Rfb1 {[%cal Re2b5]} Qc6 20. h4 {[%cal Bh2h4,Bh4h5][%mdl 32]} h6 21. h5 Ne7 22. g4 Rfc8 23. Kg2 Be8 24. Ne1 Nc7 $2 (24... Rb7 25. Nc2 Qd7) 25. Nd3 (25. Qa3 $142) 25... Rxb1 26. Rxb1 {Black must now prevent Qa3.} Ra8 27. Qb4 Nc8 (27... Qb5 28. Rb2 (28. Qxe7 Qxb1 29. Qxc7 Bb5 $17) 28... Qxb4 29. Nxb4 Rb8) 28. Nc5 Ra2 29. Rb2 Rxb2 (29... Qa8 {keeps fighting.} 30. g5 Rxb2 31. Qxb2 Bb5) 30. Qxb2 {White is clearly winning.} Qb6 (30... f5 $142 31. exf6 gxf6) 31. Qc1 {[%cal Od2h6] Strongly threatening Bxh6!} Bb5 32. Bd1 {[%cal Od2h6] Bxh6! would be deadly.} Na6 {[#]} 33. Bxh6 $1 {[%mdl 576] Demolition} gxh6 (33... Qd8 34. Bg5) 34. Qxh6 {White wants to mate with Bc2.} ({Less strong is} 34. Nxa6 Bxa6 35. Qxh6 Qb1 $18) 34... Nxc5 35. dxc5 Qd8 {Weighted Error Value: White=0.33/Black=0.40} 1-0